bitfinex/quotes_ETHUSD_20220101
["timestamp","ask_amount","ask_price","bid_price","bid_amount"]
[1641070269398,0.66506,3760.0,3759.7,0.66675537]
[1641070269601,0.383,3760.1,3759.8,1.55736072]
[1641070270202,0.1088,3760.0,3759.8,1.55736072]
[1641070270400,0.1144,3760.0,3759.8,1.55736072]
[1641070270601,0.1112,3760.0,3759.7,0.00170527]
[1641070270901,0.77383,3760.0,3759.2,0.00454739]
[1641070271104,1.06663,3760.0,3759.2,1.27502032]
[1641070271300,1.3,3760.0,3759.2,1.27502032]
[1641070271500,1.3,3760.0,3759.3,0.00397897]
[1641070271701,0.3,3760.0,3759.3,0.00397897]
[1641070271900,0.66509,3759.7,3759.3,0.00397897]
[1641070272101,0.66509,3759.7,3759.5,0.6651002]
[1641070272502,0.66509,3759.7,3759.6,0.0022737]
[1641070273148,0.66509,3759.7,3759.6,1.55963442]
[1641070273547,0.66509,3759.7,3759.6,0.0022737]
[1641070273954,1.35963293,3759.7,3759.6,1.55963442]
[1641070275653,1.95963293,3759.7,3759.6,1.55963442]
[1641070276254,2.95963293,3759.7,3759.6,1.50963442]
[1641070276504,1.95963293,3759.7,3759.6,1.50963442]
[1641070276704,2.95963293,3759.7,3759.6,1.50963442]
[1641070277105,2.44663293,3759.7,3759.6,1.50963442]
[1641070277305,3.95,3759.6,3759.3,0.05631071]
[1641070277607,3.95,3759.6,3759.4,0.00113684]
[1641070277608,2.06120854,3759.5,3759.4,0.00113684]
[1641070277906,2.79480854,3759.5,3759.4,0.00113684]
[1641070278103,3.93003933,3759.5,3759.4,0.00113684]
[1641070278304,8.73323933,3759.5,3759.4,0.00113684]
[1641070278504,6.3,3759.4,3759.3,1.071e-05]
[1641070278705,5.133,3759.4,3759.3,1.071e-05]
[1641070278907,7.2682,3759.4,3759.3,1.071e-05]
[1641070279109,10.7658,3759.4,3759.3,1.071e-05]
[1641070279306,10.7666,3759.4,3758.9,0.78812725]
[1641070279509,1.3,3759.3,3759.0,0.05631127]
[1641070279708,4.46535,3759.1,3759.0,0.05858497]
[1641070279911,5.44835,3759.1,3759.0,0.05858497]
[1641070280154,6.56595,3759.1,3759.0,0.05858497]
[1641070280360,6.56355,3759.1,3759.0,0.05858497]
[1641070280554,7.56755,3759.1,3759.0,0.05858497]
[1641070280757,7.56835,3759.1,3759.0,0.05858497]
[1641070280958,7.56995,3759.1,3759.0,0.05858497]
[1641070281155,10.58874555,3759.1,3759.0,0.05858497]
[1641070281358,7.35,3759.0,3758.9,0.78812725]
[1641070281558,33.82207019,3759.0,3758.9,0.78812725]
[1641070281756,3.75,3758.9,3758.4,1.30350169]
[1641070281958,0.6655,3758.7,3758.4,1.30350169]
[1641070282158,6.85835178,3758.6,3758.5,0.00284212]
[1641070282358,7.29435178,3758.6,3758.5,0.00284212]
[1641070282557,7.29435178,3758.6,3758.5,0.01356088]
[1641070282558,8.29355178,3758.6,3758.5,0.01356088]
[1641070282857,8.29355178,3758.6,3758.5,0.01071876]
[1641070282858,12.79035178,3758.6,3758.5,0.01071876]
[1641070283158,3.9846,3758.6,3758.5,2.26071876]
[1641070283358,3.5,3758.6,3758.5,2.26071876]
[1641070283763,0.4846,3759.2,3758.5,2.26071876]
[1641070283764,1.0,3759.4,3758.7,9.6919]
[1641070284015,2.50255649,3759.5,3758.9,8.35500343]
[1641070284214,2.50255649,3759.5,3759.4,7.26217437]
[1641070284407,3.38641387,3759.6,3759.5,7.25]
[1641070284608,0.69454293,3759.7,3759.5,7.25]
[1641070284808,0.69454293,3759.7,3759.5,7.2]
[1641070285009,0.2117,3760.2,3759.6,7.25]
[1641070285209,0.2117,3760.2,3759.8,1.3297726]
[1641070285409,0.00625266,3760.1,3759.8,1.3297726]
[1641070285809,0.00568424,3760.0,3759.8,1.3297726]
[1641070286007,0.00568424,3760.0,3759.8,4.5964159]
[1641070286210,0.00511581,3759.9,3759.8,11.4964159]
[1641070286408,0.00511581,3759.9,3759.8,11.47465713]
[1641070288051,0.00511581,3759.9,3759.8,11.48520303]
[1641070289760,1.0,3761.1,3760.3,1.3296931]
[1641070289956,1.3,3761.1,3760.5,1.3297]
[1641070290155,0.00625266,3761.0,3760.5,1.3297]
[1641070290559,1.3,3761.1,3760.5,1.3297]
[1641070290560,0.00568424,3760.9,3760.5,1.3297]
[1641070290958,0.00511581,3760.8,3760.6,1.3296931]
[1641070291405,0.00454739,3760.7,3760.6,1.9945431]
[1641070291601,0.00454739,3760.7,3760.6,1.3296931]
[1641070292609,0.00454739,3760.7,3760.5,1.32968]
[1641070292810,0.66956739,3760.7,3760.5,1.32968]
[1641070293009,0.00397897,3760.6,3760.5,1.32968]
[1641070293212,0.91899897,3760.7,3760.5,1.32968]
[1641070293611,0.91899897,3760.7,3760.5,1.34019246]
[1641070294412,0.91899897,3760.7,3760.5,0.01051246]
[1641070294616,3.3072,3760.6,3760.5,0.01051246]
[1641070294815,4.3064,3760.6,3760.5,0.01051246]
[1641070295015,1.1048,3760.6,3760.5,0.01051246]
[1641070295247,2.1096,3760.6,3760.5,0.01051246]
[1641070295449,3.4,3760.5,3760.0,1.29051986]
[1641070295651,0.66508,3760.3,3760.0,1.29051986]
[1641070295850,0.66508,3760.3,3760.1,0.00284212]
[1641070296049,0.96508,3760.3,3760.1,0.00284212]
[1641070296456,1.06748,3760.3,3760.1,0.00284212]
[1641070296651,0.66512,3760.1,3759.9,0.00397897]
[1641070297052,2.06592,3760.1,3759.9,0.00397897]
[1641070297260,1.06512,3760.1,3759.9,0.00397897]
[1641070297459,0.96512,3760.1,3759.9,0.00397897]
[1641070297858,0.96512,3760.1,3760.0,2.15941071]
[1641070298259,0.96512,3760.1,3760.0,2.16282125]
[1641070298903,0.96512,3760.1,3760.0,2.17333511]
[1641070300607,1.6596238,3760.1,3760.0,2.17333511]
[1641070301610,1.7636238,3760.1,3760.0,2.17333511]
[1641070301813,2.7724238,3760.1,3760.0,2.17333511]
[1641070302012,8.0844238,3760.1,3760.0,2.17333511]
[1641070302414,8.0828238,3760.1,3760.0,2.17333511]
[1641070302652,8.0812238,3760.1,3760.0,2.17333511]
[1641070302856,3.7804238,3760.1,3760.0,2.17333511]
[1641070303058,6.1304238,3760.1,3760.0,2.17333511]
[1641070303254,5.1288238,3760.1,3760.0,2.17333511]
[1641070303554,5.1264238,3760.1,3760.0,2.17333511]
[1641070303754,1.4796238,3760.1,3760.0,5.70209285]
[1641070303959,1.4796238,3760.1,3760.0,6.12333511]
[1641070303960,0.6945038,3760.1,3760.0,6.12333511]
[1641070304560,0.6945038,3760.1,3760.0,6.11282125]
[1641070304760,1.36022265,3761.0,3760.0,6.11282125]
[1641070304963,1.36022265,3761.0,3760.5,1.19042854]
[1641070305162,0.00113684,3760.8,3760.5,1.19042854]
[1641070305363,0.00113684,3760.8,3760.6,1.9944545]
[1641070306500,0.00113684,3760.8,3760.6,2.6592745]
[1641070306701,0.00113684,3760.8,3760.7,5.50941071]
[1641070313361,0.00113684,3760.8,3760.7,2.15941071]
[1641070318750,6.33413684,3760.8,3760.7,2.15941071]
[1641070318956,7.33413684,3760.8,3760.7,2.15941071]
[1641070319154,8.45253684,3760.8,3760.7,2.15941071]
[1641070319353,8.74933684,3760.8,3760.7,2.15941071]
[1641070319553,8.75013684,3760.8,3760.7,2.15941071]
[1641070319754,0.6651,3760.6,3760.4,0.05673797]
[1641070319955,3.333,3760.5,3760.4,0.05673797]
[1641070320156,5.4402,3760.5,3760.4,0.05673797]
[1641070320357,5.4402,3760.5,3760.4,0.05787482]
[1641070320358,5.4394,3760.5,3760.4,0.05787482]
[1641070320553,2.4902,3760.5,3760.4,0.05787482]
[1641070320756,2.4894,3760.5,3760.4,0.05787482]
[1641070320954,1.4886,3760.5,3760.4,2.24867361]
[1641070321155,2.4854,3760.5,3760.4,2.24867361]
[1641070321416,2.4902,3760.5,3760.4,0.00113685]
[1641070321611,2.4862,3760.5,3760.4,0.00113685]
[1641070321811,2.487,3760.5,3760.2,0.0022737]
[1641070322012,0.66509,3760.4,3760.2,2.19307249]
[1641070322214,0.76589,3760.4,3760.2,2.19307249]
[1641070322412,2.75878246,3760.4,3760.3,0.00170527]
[1641070322614,2.65958246,3760.4,3760.3,0.00170527]
[1641070323018,2.65958246,3760.4,3760.3,2.19079879]
[1641070323214,2.76278246,3760.4,3760.3,2.19079879]
[1641070323415,2.76198246,3760.4,3760.3,0.00170527]
[1641070323617,2.75958246,3760.4,3760.3,0.00170527]
[1641070323822,2.76198246,3760.4,3760.2,0.6673456]
[1641070324016,2.76038246,3760.4,3760.2,2.85814439]
[1641070324215,2.76278246,3760.4,3760.3,0.00170527]
[1641070324415,2.76278246,3760.4,3760.3,2.19250406]
[1641070324615,2.75958246,3760.4,3760.3,2.19250406]
[1641070324816,2.65958246,3760.4,3760.3,2.19250406]
[1641070325017,2.75958246,3760.4,3760.3,2.19250406]
[1641070325254,2.65958246,3760.4,3760.3,2.19250406]
[1641070327457,1.65958246,3760.4,3760.3,2.14250406]
[1641070327657,2.65958246,3760.4,3760.3,2.14250406]
[1641070327858,1.65958246,3760.4,3760.3,2.14250406]
[1641070328060,2.65958246,3760.4,3760.3,2.14250406]
[1641070328261,1.65958246,3760.4,3760.3,2.14250406]
[1641070328459,2.65958246,3760.4,3760.3,2.14250406]
[1641070328659,0.96509,3760.4,3760.3,2.14250406]
[1641070328904,1.96509,3760.4,3760.3,2.14250406]
[1641070329101,0.96509,3760.4,3760.3,2.14250406]
[1641070329701,0.3,3760.4,3760.3,2.14250406]
[1641070330105,2.96502,3760.6,3760.3,2.14250406]
[1641070330302,1.66502,3760.6,3760.4,1.33002]
[1641070330506,1.46311256,3760.8,3760.4,1.33002]
[1641070330507,1.35877572,3760.8,3760.6,1.0]
[1641070330705,1.80797382,3761.1,3760.7,7.25]
[1641070331505,3.89003668,3762.1,3760.8,1.22236935]
[1641070331707,1.80797382,3762.2,3761.7,0.6647366]
[1641070331908,1.80797382,3762.2,3761.6,1.3294731]
[1641070332308,2.10797382,3762.2,3761.6,1.3294731]
[1641070332761,1.80797382,3762.2,3761.6,1.3294731]
[1641070332958,1.80797382,3762.3,3761.9,0.66473]
[1641070333157,1.80797382,3762.3,3762.0,1.32942]
[1641070333561,1.80797382,3762.4,3762.0,1.32942]
[1641070333960,0.01136847,3762.3,3762.0,1.32942]
[1641070334359,0.01080004,3762.2,3762.1,0.66471]
[1641070334758,0.01080004,3762.2,3762.1,1.3294185]
[1641070334959,1.81877386,3762.2,3762.1,1.3294185]
[1641070335959,2.81877386,3762.2,3762.1,1.3294185]
[1641070336160,1.81877386,3762.2,3762.1,1.3294185]
[1641070336402,0.01080004,3762.2,3762.1,1.3294185]
[1641070336603,1.01080004,3762.2,3762.1,1.3294185]
[1641070336810,0.01080004,3762.2,3762.1,1.3294185]
[1641070337010,1.01080004,3762.2,3762.1,1.3294185]
[1641070337210,0.01080004,3762.2,3762.1,1.3294185]
[1641070337410,1.01080004,3762.2,3762.1,1.3294185]
[1641070337610,0.01080004,3762.2,3762.1,1.3294185]
[1641070343656,0.01080004,3762.2,3762.1,8.01120213]
[1641070343916,1.11136366,3762.8,3762.2,3.5]
[1641070344115,0.3,3762.8,3762.4,1.32918]
[1641070344415,0.00284212,3762.7,3762.4,1.32918]
[1641070344814,0.0022737,3762.6,3762.4,1.32918]
[1641070345213,0.00170527,3762.5,3762.4,1.32918]
[1641070345414,0.00170527,3762.5,3762.4,1.3292387]
[1641070346818,0.00170527,3762.5,3762.3,1.32918]
[1641070347017,0.01446077,3762.5,3761.1,3.8419]
[1641070347216,0.00113685,3762.4,3761.3,1.99458]
[1641070347517,1.683,3762.3,3761.9,0.00170527]
[1641070347765,3.536027,3762.2,3761.9,0.00170527]
[1641070347964,0.383,3762.1,3761.9,0.00170527]
[1641070348164,7.48408034,3762.0,3761.9,0.00170527]
[1641070348363,7.78408034,3762.0,3761.9,0.00170527]
[1641070348563,9.08408034,3762.0,3761.9,0.00170527]
[1641070348764,9.46708034,3762.0,3761.9,0.00170527]
[1641070348973,8.46708034,3762.0,3761.9,0.00170527]
[1641070349771,8.46708034,3762.0,3761.7,0.00284212]
[1641070349971,2.66485,3761.9,3761.7,0.00284212]
[1641070350171,3.883,3761.8,3761.7,0.00284212]
[1641070350373,7.53175433,3761.8,3761.7,0.00284212]
[1641070350572,5.183,3761.8,3761.7,0.00284212]
[1641070351173,0.383,3761.8,3761.7,0.00284212]
[1641070352311,0.6,3761.8,3761.6,1.28250812]
[1641070352511,1.3,3761.9,3761.6,1.28250812]
[1641070352713,0.3,3761.9,3761.6,1.28250812]
[1641070352916,0.00113685,3762.4,3761.6,0.61764812]
[1641070353113,0.00113685,3762.4,3762.1,0.66466]
[1641070353313,2.80797382,3762.8,3762.1,0.66466]
[1641070353513,1.0,3762.8,3762.1,0.66466]
[1641070353713,0.00397897,3762.4,3762.1,0.66466]
[1641070354116,0.00341055,3762.3,3762.1,3.02457087]
[1641070354512,0.00284212,3762.2,3762.1,3.02457087]
[1641070354714,0.00284212,3762.2,3762.1,4.35390477]
[1641070354913,0.00284212,3762.2,3762.1,3.02456477]
[1641070359706,0.00284212,3762.2,3762.1,5.17773249]
[1641070360510,1.36234675,3762.2,3762.1,5.17773249]
[1641070361213,1.36234675,3762.2,3762.1,4.14716162]
[1641070361814,0.00284212,3762.2,3762.1,4.14716162]
[1641070362012,0.00284212,3762.2,3762.1,3.48250162]
[1641070362657,2.50493166,3762.2,3762.1,1.3293339]
[1641070363059,3.50493166,3762.2,3762.1,1.3293339]
[1641070363858,1.69695784,3762.2,3762.1,1.3293339]
[1641070364062,0.69695784,3762.2,3762.1,1.3293339]
[1641070364967,1.69695784,3762.2,3762.1,1.3293339]
[1641070367606,0.69695784,3762.2,3762.1,1.3293339]
[1641070369014,2.05522991,3762.2,3762.1,1.3293339]
[1641070369410,0.69695784,3762.2,3762.1,1.3293339]
[1641070370658,2.05522932,3762.2,3762.1,1.3293339]
[1641070371162,3.05522932,3762.2,3762.1,1.3293339]
[1641070371359,2.05522932,3762.2,3762.1,1.3293339]
[1641070371659,3.05522932,3762.2,3762.1,1.3293339]
[1641070372459,0.69695784,3762.2,3762.1,3.47969887]
[1641070372658,1.69695784,3762.2,3762.1,3.47969887]
[1641070373462,0.69695784,3762.2,3762.1,3.47969887]
[1641070373763,3.05522932,3762.2,3762.1,1.3293339]
[1641070374019,0.69695784,3762.2,3762.1,3.47998443]
[1641070374220,1.69695784,3762.2,3762.1,3.47998443]
[1641070374419,0.69695784,3762.2,3762.1,3.47998443]
[1641070374620,1.69695784,3762.2,3762.1,3.47998443]
[1641070374824,0.69695784,3762.2,3762.1,3.47998443]
[1641070377224,0.69695784,3762.2,3762.1,5.87998443]
[1641070377427,0.69695784,3762.2,3762.1,3.47998443]
[1641070377673,0.69695784,3762.2,3762.1,3.87998443]
[1641070384919,0.69411572,3762.2,3762.1,3.87998443]
[1641070387978,0.69411572,3762.2,3762.1,1.7293339]
[1641070389218,0.69411572,3762.2,3762.1,3.8743363]
[1641070393065,3.1183343,3762.9,3762.4,0.66451]
[1641070393268,0.3,3762.8,3762.4,0.66451]
[1641070393465,0.00568424,3762.7,3762.4,0.66451]
[1641070393965,0.00511582,3762.6,3762.4,1.32901]
[1641070394166,0.00511582,3762.6,3762.5,3.4739546]
[1641070394367,1.6567355,3762.9,3762.5,4.8030346]
[1641070394765,0.00625266,3762.8,3762.5,4.8030346]
[1641070395165,0.00568424,3762.7,3762.5,4.8030346]
[1641070395366,0.00568424,3762.7,3762.6,2.1450024]
[1641070395567,1.6,3762.9,3762.6,2.1450024]
[1641070395769,1.6,3762.9,3762.6,2.8095264]
[1641070395967,0.00625266,3762.8,3762.6,2.8095264]
[1641070396406,0.00568424,3762.7,3762.6,2.8095264]
[1641070396608,0.00568424,3762.7,3762.6,0.664524]
[1641070397208,0.00568424,3762.7,3762.6,2.81831315]
[1641070401168,0.69966722,3762.7,3762.6,2.81831315]
[1641070406835,4.0860894,3762.7,3762.6,2.15378915]
[1641070407038,1.71257439,3762.7,3762.6,2.15378915]
[1641070407237,0.3,3762.6,3762.4,0.66474]
[1641070407673,0.00454739,3762.5,3762.4,0.66474]
[1641070408979,4.56372147,3762.5,3762.4,0.66474]
[1641070409178,4.56372147,3762.5,3762.3,1.06474]
[1641070409579,3.40397897,3762.4,3762.3,1.06474]
[1641070409781,3.70397897,3762.4,3762.3,1.06474]
[1641070409979,3.70397897,3762.4,3762.3,0.4]
[1641070409980,4.70397897,3762.4,3762.3,0.4]
[1641070410379,8.00472559,3762.4,3762.3,0.4]
[1641070413617,4.60472559,3762.4,3762.3,0.4]
[1641070414218,1.30397897,3762.4,3762.3,0.4]
[1641070414815,4.22303408,3762.4,3762.3,0.4]
[1641070415156,4.22891377,3762.4,3762.3,0.4]
[1641070415963,1.00397897,3762.4,3762.3,0.4]
[1641070416164,0.00397897,3762.4,3762.3,0.4]
[1641070416361,1.00397897,3762.4,3762.3,0.4]
[1641070417565,4.23645829,3762.4,3762.3,0.4]
[1641070417763,6.04911706,3762.4,3762.3,0.4]
[1641070418363,1.00397897,3762.4,3762.3,0.4]
[1641070418563,4.23274611,3762.4,3762.3,0.4]
[1641070420117,6.04540488,3762.4,3762.3,0.4]
[1641070420319,2.81663774,3762.4,3762.3,0.4]
[1641070421120,1.00397897,3762.4,3762.3,0.4]
[1641070422321,1.00397897,3762.4,3762.3,2.53883142]
[1641070422523,0.00397897,3762.4,3762.3,2.53883142]
[1641070423373,0.00397897,3762.4,3762.3,0.4]
[1641070424582,0.00397897,3762.4,3762.3,2.53920814]
[1641070425181,1.36337861,3762.4,3762.3,2.53920814]
[1641070425680,2.36337861,3762.4,3762.3,2.53920814]
[1641070426078,1.00397897,3762.4,3762.3,2.53920814]
[1641070426280,0.00397897,3762.4,3762.3,2.53920814]
[1641070426821,1.3633598,3762.4,3762.3,2.53920814]
[1641070427120,2.3633598,3762.4,3762.3,2.53920814]
[1641070428520,1.00397897,3762.4,3762.3,2.53920814]
[1641070428721,0.00397897,3762.4,3762.3,2.53920814]
[1641070431281,1.36334696,3762.4,3762.3,2.53920814]
[1641070431678,2.36334696,3762.4,3762.3,2.53920814]
[1641070432682,1.00397897,3762.4,3762.3,2.53920814]
[1641070436416,3.45397897,3762.4,3762.3,2.53920814]
[1641070436821,1.00397897,3762.4,3762.3,2.53920814]
[1641070437420,1.00397897,3762.4,3762.3,0.4]
[1641070437659,0.00397897,3762.4,3762.3,0.4]
[1641070439566,1.26475,3762.5,3762.3,0.4]
[1641070439766,1.64775,3762.5,3762.3,1.06468]
[1641070440567,1.35854191,3762.4,3762.3,1.06468]
[1641070440968,2.35854191,3762.4,3762.3,1.06468]
[1641070441169,2.35854191,3762.4,3762.3,3.20679459]
[1641070441615,1.0,3762.4,3762.3,3.20679459]
[1641070445667,2.64775,3762.5,3762.3,3.20679459]
[1641070446467,2.64775,3762.5,3762.4,2.14211459]
[1641070446868,2.65229739,3762.5,3762.4,2.14211459]
[1641070448921,3.34639499,3762.5,3762.4,2.14211459]
[1641070449924,4.7049369,3762.5,3762.4,2.14211459]
[1641070454184,3.34639499,3762.5,3762.4,2.14211459]
[1641070454383,3.34639499,3762.5,3762.4,2.09211459]
[1641070454783,4.7049369,3762.5,3762.4,2.09211459]
[1641070463471,4.7292619,3762.5,3762.4,2.09211459]
[1641070465522,3.37071999,3762.5,3762.4,2.09211459]
[1641070471514,3.37071999,3762.5,3762.4,5.52817023]
[1641070471515,0.72296999,3762.5,3762.4,5.52817023]
[1641070472114,0.72296999,3762.5,3762.4,6.74211459]
[1641070472314,3.52016766,3762.9,3762.5,3.8]
[1641070472516,1.81265877,3762.9,3762.7,0.66442]
[1641070472718,0.00170527,3762.8,3762.7,1.9932554]
[1641070472918,0.05673497,3763.2,3762.8,2.9]
[1641070473318,1.81265877,3763.5,3762.8,2.9]
[1641070473519,1.81265877,3763.7,3762.8,2.9]
[1641070473919,0.05673445,3763.5,3762.8,2.9]
[1641070474521,0.05673445,3763.5,3762.8,4.22886]
[1641070474721,0.05673445,3763.5,3762.9,2.15291432]
[1641070475171,40.00113685,3763.0,3762.9,2.15291432]
[1641070477076,40.21853685,3763.0,3762.9,4.35291432]
[1641070477278,40.21853685,3763.0,3762.9,2.15291432]
[1641070483067,40.21853685,3763.0,3762.9,4.55291432]
[1641070483269,40.21853685,3763.0,3762.9,2.15291432]
[1641070486078,40.21853685,3763.0,3762.9,5.19541218]
[1641070486277,40.21853685,3763.0,3762.9,5.19302439]
[1641070486529,40.21853685,3763.0,3762.9,2.15291432]
[1641070486735,40.21853685,3763.0,3762.9,5.2027812]
[1641070486932,40.21853685,3763.0,3762.9,2.15291432]
[1641070489634,40.91244142,3763.0,3762.9,2.15291432]
[1641070489934,40.91244142,3763.0,3762.8,3.3221455]
[1641070503431,41.21244142,3763.0,3762.8,3.3221455]
[1641070505186,41.21130457,3763.0,3762.8,3.3221455]
[1641070508788,40.5174,3763.0,3762.8,3.3221455]
[1641070509231,40.5174,3763.0,3762.9,0.02589178]
[1641070509432,40.8174,3763.0,3762.9,0.02589178]
[1641070510631,40.8174,3763.0,3762.9,2.15771655]
[1641070511431,41.8174,3763.0,3762.9,2.15771655]
[1641070512033,41.8174,3763.0,3762.9,0.02589178]
[1641070512981,41.8174,3763.0,3762.9,2.15798183]
[1641070516727,0.66452,3763.3,3763.2,1.18345549]
[1641070518329,0.96452,3763.3,3763.2,1.18345549]
[1641070518530,1.26452,3763.3,3763.2,1.18345549]
[1641070518729,1.95847344,3763.3,3763.2,1.18345549]
[1641070518929,2.95847344,3763.3,3763.2,1.18345549]
[1641070519934,1.95847344,3763.3,3763.2,1.18345549]
[1641070520180,2.95847344,3763.3,3763.2,1.18345549]
[1641070520373,1.95847344,3763.3,3763.2,1.18345549]
[1641070520578,2.95847344,3763.3,3763.2,1.18345549]
[1641070520779,1.95847344,3763.3,3763.2,1.18345549]
[1641070520982,2.95847344,3763.3,3763.2,1.18345549]
[1641070521181,1.95847344,3763.3,3763.2,1.18345549]
[1641070521378,2.95847344,3763.3,3763.2,1.18345549]
[1641070521779,1.95847344,3763.3,3763.2,1.18345549]
[1641070522081,2.95847344,3763.3,3763.2,1.18345549]
[1641070522279,1.95847344,3763.3,3763.2,1.18345549]
[1641070522481,2.95847344,3763.3,3763.2,1.18345549]
[1641070522680,1.95847344,3763.3,3763.2,1.18345549]
[1641070522881,2.95847344,3763.3,3763.2,1.18345549]
[1641070523280,1.95847344,3763.3,3763.2,1.18345549]
[1641070523581,2.95847344,3763.3,3763.2,1.18345549]
[1641070523780,1.95847344,3763.3,3763.2,1.18345549]
[1641070524027,2.95847344,3763.3,3763.2,1.18345549]
[1641070524228,1.95847344,3763.3,3763.2,1.18345549]
[1641070524428,2.29395344,3763.3,3763.2,1.18345549]
[1641070524630,1.29395344,3763.3,3763.2,1.18345549]
[1641070528980,0.99395344,3763.3,3763.2,1.18345549]
[1641070529179,0.69395344,3763.3,3763.2,1.18345549]
[1641070529379,0.69395344,3763.3,3763.2,5.08345549]
[1641070529579,0.69395344,3763.3,3763.2,8.08443514]
[1641070529785,0.69395344,3763.3,3763.2,5.08345549]
[1641070530180,0.69395344,3763.3,3763.2,7.25216239]
[1641070530380,0.69395344,3763.3,3763.2,9.95216239]
[1641070530783,0.05673357,3764.0,3763.3,4.55]
[1641070530982,0.05673357,3764.0,3763.6,0.66431]
[1641070531183,0.05673357,3764.0,3763.7,3.38941544]
[1641070531184,0.00625266,3763.9,3763.7,3.38941544]
[1641070531464,0.00625266,3763.9,3763.6,0.80250997]
[1641070531653,0.00568424,3763.8,3763.6,0.80250997]
[1641070532057,0.00511581,3763.7,3763.6,2.13107997]
[1641070532257,3.1029234,3764.4,3763.6,2.13107997]
[1641070532258,3.1029234,3764.4,3763.7,6.3]
[1641070532458,3.1029234,3764.4,3763.8,1.32849]
[1641070532663,0.00341054,3764.3,3763.8,1.32849]
[1641070533057,0.00284212,3764.2,3763.8,1.32849]
[1641070533257,0.00284212,3764.2,3763.9,3.28054531]
[1641070533461,0.0022737,3764.1,3763.9,6.77775221]
[1641070533659,0.0022737,3764.1,3764.0,6.99547045]
[1641070534060,1.65930958,3764.5,3764.0,3.9642406]
[1641070534259,1.65930958,3764.5,3764.0,6.7972869]
[1641070534458,0.00397897,3764.4,3764.0,6.7972869]
[1641070534860,0.00341054,3764.3,3764.0,6.7972869]
[1641070535179,1.65930958,3764.5,3764.0,6.7972869]
[1641070535180,0.00284212,3764.2,3764.1,0.02570471]
[1641070535382,0.00284212,3764.2,3764.1,1.35430481]
[1641070535584,0.00284212,3764.2,3764.1,3.52301171]
[1641070537887,1.3621517,3764.2,3764.1,3.52301171]
[1641070538486,0.00284212,3764.2,3764.1,3.52301171]
[1641070542433,0.00284212,3764.2,3764.1,5.67301171]
[1641070546530,0.00284212,3764.2,3764.1,3.52301171]
[1641070546531,0.69656216,3764.2,3764.1,3.52301171]
[1641070549533,0.69656216,3764.2,3764.1,1.35430481]
[1641070550175,0.69656216,3764.2,3764.1,3.75430481]
[1641070552183,0.69656216,3764.2,3764.1,8.60430481]
[1641070552885,0.69656216,3764.2,3764.1,10.78796254]
[1641070553935,0.69656216,3764.2,3764.1,14.03115517]
[1641070554935,0.69656216,3764.2,3764.1,11.84749744]
[1641070555334,0.69656216,3764.2,3764.1,3.75430481]
[1641070555936,0.69656216,3764.2,3764.1,6.75928529]
[1641070556435,0.69656216,3764.2,3764.1,3.75430481]
[1641070557236,0.69656216,3764.2,3764.1,8.00430481]
[1641070558785,0.69656216,3764.2,3764.1,3.75430481]
[1641070559185,0.69656216,3764.2,3764.1,7.50430481]
[1641070565479,0.69372004,3764.2,3764.1,7.50430481]
[1641070567587,0.69372004,3764.2,3764.1,3.75430481]
[1641070567989,0.69372004,3764.2,3764.1,1.35430481]
[1641070568386,0.69372004,3764.2,3764.1,0.02570471]
[1641070570039,0.69372004,3764.2,3764.1,2.42570471]
[1641070570840,0.69372004,3764.2,3764.1,0.02570471]
[1641070572545,2.05302962,3764.2,3764.1,2.2269994]
[1641070574784,0.69372004,3764.2,3764.1,2.2269994]
[1641070575585,2.05302962,3764.2,3764.1,2.2269994]
[1641070577442,0.69372004,3764.2,3764.1,2.2269994]
[1641070578846,0.69372004,3764.2,3764.1,5.8269994]
[1641070582591,0.69372004,3764.2,3764.1,8.53990938]
[1641070583193,0.69372004,3764.2,3764.1,5.8269994]
[1641070604691,0.69372004,3764.2,3764.1,8.4269994]
[1641070605791,0.69372004,3764.2,3764.1,5.8269994]
[1641070610593,0.69372004,3764.2,3764.1,8.2769994]
[1641070610993,0.69372004,3764.2,3764.1,5.8269994]
[1641070619688,1.35930958,3764.9,3764.2,7.25]
[1641070619888,1.35930958,3764.9,3764.6,0.6641255]
[1641070620087,0.00625266,3764.8,3764.7,0.66413]
[1641070620291,0.00625266,3764.8,3764.6,1.9923855]
[1641070620489,0.00738951,3765.0,3764.7,2.20129469]
[1641070620792,1.81265877,3765.3,3765.1,1.13937101]
[1641070621447,1.81265877,3765.4,3765.1,1.13937101]
[1641070621632,1.81265877,3765.4,3765.1,1.80348221]
[1641070621832,1.81265877,3765.4,3765.2,0.66412]
[1641070622233,1.81265877,3765.4,3765.2,0.68967782]
[1641070623238,2.47678877,3765.5,3765.2,1.35379782]
[1641070623446,2.47678877,3765.5,3765.3,1.328235]
[1641070623640,0.0096632,3765.4,3765.3,3.45098296]
[1641070626998,0.0096632,3765.4,3765.3,1.328235]
[1641070631036,6.533,3766.1,3766.0,83.34335991]
[1641070631436,7.833,3766.1,3766.0,83.34335991]
[1641070631836,8.49714,3766.1,3766.0,83.34335991]
[1641070633099,2.34714,3766.1,3766.0,83.36881399]
[1641070633500,10.34714,3766.1,3766.0,83.36881399]
[1641070639543,2.34714,3766.1,3766.0,83.36881399]
[1641070642589,2.34714,3766.1,3766.0,172.36881399]
[1641070644843,4.15229911,3766.1,3766.0,172.36881399]
[1641070646042,2.34714,3766.1,3766.0,172.36881399]
[1641070647245,4.15229911,3766.1,3766.0,172.36881399]
[1641070648094,4.8458039,3766.1,3766.0,172.36881399]
[1641070648891,3.04064479,3766.1,3766.0,172.36881399]
[1641070649898,4.8458039,3766.1,3766.0,172.36881399]
[1641070650699,5.7520039,3766.1,3766.0,172.36881399]
[1641070650903,114.64857879,3766.1,3766.0,160.65266684]
[1641070651107,36.83400513,3766.1,3766.0,160.65266684]
[1641070651303,99.53557217,3766.1,3766.0,148.06846684]
[1641070651541,93.09853917,3766.1,3766.0,142.08836684]
[1641070651740,90.91161566,3766.1,3766.0,142.08836684]
[1641070651941,93.19299566,3766.1,3766.0,136.77286684]
[1641070652143,93.89252318,3766.1,3766.0,136.77286684]
[1641070652343,97.90478118,3766.1,3766.0,131.94108118]
[1641070652547,91.44531418,3766.1,3766.0,126.62558118]
[1641070652842,85.79752218,3766.1,3766.0,125.96114118]
[1641070653044,85.79177918,3766.1,3766.0,117.02150333]
[1641070653243,85.15332418,3766.1,3766.0,117.02150333]
[1641070653446,87.26151618,3766.1,3766.0,111.70604333]
[1641070653643,86.32795618,3766.1,3766.0,111.04160333]
[1641070653843,86.96131618,3766.1,3766.0,111.04160333]
[1641070654045,86.96051618,3766.1,3766.0,105.72614333]
[1641070654645,86.96051618,3766.1,3766.0,100.41068333]